bitfinex/quotes_SOLUSD_20260311
["timestamp","ask_amount","ask_price","bid_price","bid_amount"]
[1773250747708,11.49042273,87.029,86.991,40.23404719]
[1773250748006,2.64424317,87.009,86.97,7.40081587]
[1773250748301,2.64424317,87.017,86.971,2.6673494]
[1773250748500,14.1346659,87.029,86.99,7.40081587]
[1773250748804,40.21333493,87.036,86.991,2.6673494]
[1773250749004,14.13383161,87.036,87.0,7.40081587]
[1773250749395,3.62,87.044,87.01,7.40081587]
[1773250749595,14.13222546,87.048,87.019,11.49170034]
[1773250749794,11.48804668,87.047,87.02,7.40081587]
[1773250750101,11.48804668,87.047,87.019,11.49170034]
[1773250750502,11.48804668,87.047,87.013,11.49243249]
[1773250750904,2.64424317,87.048,87.013,11.49243249]
[1773250751098,7.40081587,87.05,87.013,11.49243249]
[1773250751290,2.64424317,87.039,87.0,7.40081587]
[1773250751606,40.20400661,87.056,86.992,2.78]
[1773250751607,11.48852852,87.044,87.011,11.49279976]
[1773250751788,2.64424317,87.051,87.02,7.40081587]
[1773250752208,18.59596664,87.057,87.02,7.40081587]
[1773250752403,18.59596664,87.057,87.02,10.06816527]
[1773250752913,18.59596664,87.057,87.03,7.40081587]
[1773250753092,18.59596664,87.057,87.02,10.06816527]
[1773250753289,18.59596664,87.057,87.02,2.6673494]
[1773250753290,49.95702752,87.057,87.02,2.6673494]
[1773250753613,2.64424317,87.049,87.011,11.49279976]
[1773250753810,14.13215788,87.048,87.011,11.49279976]
[1773250754014,11.48791471,87.048,87.012,2.6673494]
[1773250754210,11.48685903,87.056,87.021,2.6673494]
[1773250754414,7.10923136,87.057,87.03,7.40081587]
[1773250754715,1e-08,87.057,87.031,2.6673494]
[1773250754917,1e-08,87.057,87.03,7.40081587]
[1773250755127,0.68215389,87.092,87.054,4.82477569]
[1773250755308,45.87617522,87.192,87.031,4.82477569]
[1773250755309,11.57720225,87.13,87.08,7.40081587]
[1773250755496,0.1,87.13,87.08,7.40081587]
[1773250755701,0.1,87.13,87.11,7.40081587]
[1773250756018,0.1,87.13,87.096,11.48158354]
[1773250756323,7.50081587,87.13,87.091,40.18784948]
[1773250756503,0.1,87.13,87.1,7.40081587]
[1773250757002,0.1,87.13,87.091,40.18784948]
[1773250757003,0.1,87.13,87.11,7.40081587]
[1773250757410,2.88804235,87.129,87.091,11.48224271]
[1773250757712,11.47736663,87.128,87.1,7.40081587]
[1773250758218,2.88804235,87.129,87.1,7.40081587]
[1773250758432,2.88804235,87.128,87.08,7.40081587]
[1773250758717,2.88804235,87.128,87.09,7.40081587]
[1773250759496,2.88804235,87.128,87.08,7.40081587]
[1773250759694,2.88804235,87.128,87.09,7.40081587]
[1773250760113,2.88804235,87.119,87.08,7.40081587]
[1773250760502,2.88804235,87.109,87.07,7.40081587]
[1773250760908,2.88804235,87.109,87.08,7.40081587]
[1773250761097,2.88804235,87.109,87.07,7.40081587]
[1773250761298,2.88804235,87.122,87.09,7.40081587]
[1773250761507,7.50081587,87.13,87.09,7.40081587]
[1773250761508,0.1,87.13,87.09,7.40081587]
[1773250761714,103.20745844,87.203,87.121,2.76713167]
[1773250761895,7.40081587,87.17,87.13,7.40081587]
[1773250762222,7.40081587,87.2,87.16,7.40081587]
[1773250762604,7.40081587,87.2,87.15,7.40081587]
[1773250762800,7.40081587,87.19,87.15,7.40081587]
[1773250763214,40.13715438,87.201,87.134,2.76393267]
[1773250763420,7.40081587,87.18,87.13,11.47698653]
[1773250763618,7.40081587,87.18,87.094,91.85448566]
[1773250763619,2.82797902,87.159,87.12,7.40081587]
[1773250764327,7.40081587,87.14,87.108,11.47996564]
[1773250764530,2.82797902,87.149,87.11,7.40081587]
[1773250764704,40.15695632,87.158,87.1,7.40081587]
[1773250764705,2.82797902,87.139,87.1,7.40081587]
[1773250765404,2.82797902,87.139,87.097,11.48145171]
[1773250765405,2.82797902,87.153,87.12,7.40081587]
[1773250765615,7.40081587,87.15,87.11,7.40081587]
[1773250765921,2.82797902,87.153,87.11,7.40081587]
[1773250766100,2.82797902,87.153,87.099,1.1481188]
[1773250766101,2.82797902,87.153,87.12,7.40081587]
[1773250766305,2.82797902,87.153,87.099,1.1481188]
[1773250766306,11.47286923,87.163,87.131,11.47697145]
[1773250766615,2.82797902,87.149,87.11,18.88048505]
[1773250768320,2.82797902,87.159,87.13,7.40081587]
[1773250768524,28.67816474,87.175,87.121,11.47828881]
[1773250768525,11.47253382,87.165,87.14,7.40081587]
[1773250769033,11.47170503,87.171,87.14,7.40081587]
[1773250769215,11.47020679,87.183,87.16,7.40081587]
[1773250769834,11.47020679,87.183,87.148,2.74187069]
[1773250769835,11.47020679,87.183,87.15,7.40081587]
[1773250769999,11.47020679,87.183,87.128,1.14773666]
[1773250770000,2.82797902,87.169,87.128,1.14773666]
[1773250770203,2.82797902,87.159,87.121,11.47828881]
[1773250770434,2.82797902,87.149,87.11,7.40081587]
[1773250770602,2.82797902,87.139,87.102,14.26067835]
[1773250770809,2.82797902,87.139,87.102,11.48067835]
[1773250771411,2.82797902,87.139,87.11,7.40081587]
[1773250771612,2.82797902,87.139,87.102,11.48067835]
[1773250772006,2.82797902,87.153,87.12,7.40081587]
[1773250772205,11.47341609,87.158,87.12,7.40081587]
[1773250772401,11.47367937,87.156,87.121,11.47828881]
[1773250772817,11.47367937,87.156,87.121,40.17401085]
[1773250773024,11.47367937,87.156,87.121,11.47828881]
[1773250773225,2.82797902,87.155,87.121,11.47828881]
[1773250774111,2.82797902,87.155,87.122,1.1478157]
[1773250774309,2.82797902,87.155,87.121,11.47828881]
[1773250774535,11.47394267,87.154,87.121,11.47828881]
[1773250775027,2.82797902,87.153,87.121,11.47828881]
[1773250775918,2.82797902,87.149,87.11,7.40081587]
[1773250776226,11.47394267,87.154,87.12,7.40081587]
[1773250776416,2.82797902,87.153,87.115,1.14790793]
[1773250776620,7.40081587,87.14,87.113,11.47934292]
[1773250776814,2.82797902,87.14,87.113,11.47934292]
[1773250777021,10.22879489,87.14,87.103,11.48066082]
[1773250777318,7.40081587,87.13,87.092,11.48211087]
[1773250777518,2.82797902,87.139,87.092,12.63032195]
[1773250777835,2.82797902,87.139,87.1,7.40081587]
[1773250778840,7.40081587,87.12,87.082,2.71208011]
[1773250779014,7.40081587,87.12,87.083,11.48329754]
[1773250779015,2.82797902,87.119,87.083,11.48329754]
[1773250779335,2.82797902,87.109,87.072,11.48474825]
[1773250779632,2.82797902,87.089,87.05,11.48765077]
[1773250779836,10.22879489,87.08,87.042,2.78]
[1773250780017,2.82797902,87.079,87.037,11.48936659]
[1773250780218,7.40081587,87.06,87.028,11.49050571]
[1773250780536,2.59769826,87.059,87.021,11.49147906]
[1773250780719,2.59769826,87.057,87.03,7.40081587]
[1773250780916,2.59769826,87.071,87.04,7.40081587]
[1773250781112,2.59769826,87.084,87.041,1.14888385]
[1773250781421,2.59769826,87.098,87.06,7.40081587]
[1773250781614,2.59769826,87.098,87.06,9.98277592]
[1773250782121,2.59769826,87.098,87.06,7.40081587]
[1773250782736,3.56,87.117,87.047,1.14880466]
[1773250782737,2.59769826,87.079,87.047,1.14880466]
[1773250782923,2.59769826,87.079,87.041,11.48883859]
[1773250783123,2.59769826,87.079,87.041,40.21093507]
[1773250783319,2.59769826,87.079,87.041,11.48883859]
[1773250783634,2.59769826,87.069,87.024,40.2187902]
[1773250783828,2.59769826,87.069,87.03,7.40081587]
[1773250784413,2.59769826,87.049,87.013,11.4924127]
[1773250784629,2.59769826,87.047,87.013,11.4924127]
[1773250785331,7.40081587,87.04,87.013,11.4924127]
[1773250785533,7.40081587,87.04,86.94,7.40081587]
[1773250785534,2.59769826,87.029,86.98,7.40081587]
[1773250785731,2.59769826,87.029,86.981,40.23867281]
[1773250785921,2.59769826,87.019,86.982,1.14966314]
[1773250786322,2.59769826,87.019,86.99,7.40081587]
[1773250786529,7.40081587,87.03,86.99,7.40081587]
[1773250786923,11.48858144,87.043,87.01,7.40081587]
[1773250787123,7.40081587,87.04,87.0,7.40081587]
[1773250787318,2.59769826,87.039,87.0,7.40081587]
[1773250787915,3.58,87.06,86.991,28.73860514]
[1773250787916,2.59769826,87.054,87.02,7.40081587]
[1773250788141,11.48725489,87.053,87.02,7.40081587]
[1773250788636,11.48725489,87.053,86.996,2.78]
[1773250788637,2.59769826,87.039,87.0,7.40081587]
[1773250789021,14.08693284,87.038,87.001,11.49412075]
[1773250789224,14.08693284,87.038,87.002,1.14939886]
[1773250789640,2.59769826,87.037,87.002,1.14939886]
[1773250790229,2.59769826,87.037,87.001,11.49412075]
[1773250790459,2.72074233,87.029,86.98,7.40081587]
[1773250790643,2.72074233,87.019,86.98,7.40081587]
[1773250791137,11.49187524,87.018,86.981,11.49676366]
[1773250792025,2.72074233,87.017,86.981,40.23867281]
[1773250792233,7.40081587,87.04,87.0,7.40081587]
[1773250792545,45.92948372,87.091,87.006,2.65174599]
[1773250792546,11.48699098,87.055,87.006,2.65174599]
[1773250792723,7.40081587,87.05,87.01,7.40081587]
[1773250792924,7.40081587,87.03,86.986,2.65174599]
[1773250793231,3.58,87.056,86.991,40.23404719]
[1773250793232,11.49042273,87.029,86.991,40.23404719]
[1773250793423,11.48910258,87.039,87.0,7.40081587]
[1773250793824,11.48699098,87.055,87.011,2.65174599]
[1773250794341,2.72074233,87.054,87.011,2.65174599]
[1773250794842,2.72074233,87.079,87.04,7.40081587]
[1773250795040,2.72074233,87.069,87.031,2.65174599]
[1773250795249,11.48527587,87.068,87.032,11.49002665]
[1773250795835,2.72074233,87.069,87.04,7.40081587]
[1773250796033,42.91885454,87.069,87.032,11.49002665]
[1773250796232,14.20599463,87.069,87.032,11.49002665]
[1773250796531,2.72074233,87.068,87.032,11.49002665]
[1773250797031,2.72074233,87.068,87.04,7.40081587]
[1773250797231,2.72074233,87.081,87.041,40.21093507]
[1773250797430,2.72074233,87.081,87.05,7.40081587]
[1773250797639,2.72074233,87.081,87.06,7.40081587]
[1773250797968,42.90490058,87.099,87.06,7.40081587]
[1773250798144,2.72074233,87.098,87.06,7.40081587]
[1773250798326,3.58,87.101,87.07,7.40081587]
[1773250798527,14.20038612,87.111,87.08,7.40081587]
[1773250798723,2.72074233,87.111,87.08,7.40081587]
[1773250799135,3.69383402,87.145,87.08,7.40081587]
[1773250799136,11.47460097,87.149,87.111,2.65174599]
[1773250799344,0.1,87.15,87.12,7.40081587]
[1773250799649,7.50081587,87.15,87.115,11.47900662]
[1773250799947,0.1,87.15,87.12,7.40081587]
[1773250800350,7.40081587,87.14,87.1,7.40081587]
[1773250800747,2.72074233,87.119,87.08,7.40081587]
[1773250801332,11.47868408,87.118,87.08,7.40081587]
[1773250801533,11.47868408,87.118,87.08,7.38266785]
[1773250801850,11.47460097,87.149,87.1,10.03441384]
[1773250802046,40.16110339,87.149,87.101,2.65174599]
[1773250802249,0.1,87.15,87.13,7.38266785]
[1773250802453,11.47460097,87.149,87.111,2.65174599]
[1773250803553,7.48266785,87.15,87.112,11.47947469]
[1773250803744,0.1,87.15,87.12,7.38266785]
[1773250803940,0.1,87.15,87.14,7.38266785]
[1773250804254,0.1,87.15,87.124,2.65174599]
[1773250804255,40.14866476,87.176,87.124,2.65174599]
[1773250804458,11.47104707,87.176,87.131,2.65174599]
[1773250804765,2.72074233,87.175,87.14,7.38266785]
[1773250805263,7.38266785,87.19,87.161,2.65174599]
[1773250805437,2.72074233,87.199,87.15,7.38266785]
[1773250805643,2.72074233,87.197,87.151,11.47433764]
[1773250805840,11.46407731,87.229,87.171,2.65174599]
[1773250806043,11.46407731,87.229,87.151,86.05753231]
[1773250806044,3.58,87.222,87.19,7.38266785]
[1773250806252,0.1,87.23,87.21,7.38266785]
[1773250806453,0.1,87.23,87.2,7.38266785]
[1773250806738,0.1,87.23,87.21,7.38266785]
[1773250806941,0.1,87.23,87.211,2.65174599]
[1773250807345,0.1,87.23,87.2,7.38266785]
[1773250807848,0.1,87.23,87.201,2.65174599]
[1773250808741,7.38266785,87.21,87.176,2.65174599]
[1773250808946,7.38266785,87.21,87.17,7.38266785]
[1773250809438,2.72074233,87.219,87.18,7.38266785]
[1773250809647,11.46473447,87.224,87.19,7.38266785]
[1773250809958,7.38266785,87.29,87.211,2.65174599]
[1773250809959,11.46144941,87.249,87.211,2.65174599]
[1773250810171,7.38266785,87.24,87.211,2.65174599]
[1773250810476,40.11507294,87.249,87.211,2.65174599]
[1773250810767,11.46144941,87.249,87.211,2.65174599]
[1773250811441,0.1,87.26,87.24,10.03441384]
[1773250811649,0.1,87.26,87.242,14.11411503]
[1773250811846,0.1,87.26,87.242,2.65174599]
[1773250812039,11.45808878,87.275,87.243,2.65174599]
[1773250812245,7.38266785,87.27,87.243,2.65174599]
[1773250812551,3.58,87.3,87.261,2.65174599]
[1773250812751,11.45417824,87.305,87.27,7.38266785]
[1773250813047,7.38266785,87.3,87.271,2.65174599]
[1773250813261,11.45417824,87.305,87.271,2.65174599]
[1773250813463,3.58,87.319,87.245,3.69383402]
[1773250813464,11.45226124,87.319,87.281,2.65174599]
[1773250813639,7.38266785,87.3,87.245,3.69383402]
[1773250813844,7.38266785,87.3,87.26,7.38266785]
[1773250814050,7.38266785,87.29,87.25,7.38266785]
[1773250814343,2.72074233,87.299,87.26,7.38266785]
[1773250814549,2.72074233,87.299,87.25,7.38266785]
[1773250814871,7.38266785,87.28,87.231,11.46381446]
[1773250815164,7.38266785,87.27,87.221,3.69383402]
[1773250815375,7.38266785,87.28,87.24,7.38266785]
[1773250815671,7.38266785,87.28,87.235,2.65174599]
[1773250815861,7.38266785,87.28,87.24,7.38266785]
[1773250816359,7.38266785,87.27,87.236,2.65174599]
[1773250816550,7.38266785,87.28,87.24,7.38266785]
[1773250816741,45.78063699,87.374,87.276,2.65174599]
[1773250816944,7.38266785,87.34,87.3,7.38266785]
[1773250817362,3.58,87.374,87.3,7.38266785]
[1773250817669,7.38266785,87.34,87.3,2.65174599]
[1773250817856,11.44963876,87.339,87.3,21.48911897]
[1773250818064,7.38266785,87.35,87.311,2.65174599]
[1773250818262,7.38266785,87.36,87.321,2.65174599]
[1773250819466,2.72074233,87.339,87.258,4.82477569]
[1773250819664,2.72074233,87.339,87.3,7.38266785]
[1773250820384,2.72074233,87.339,87.258,4.82477569]
[1773250820385,7.38266785,87.32,87.258,4.82477569]
[1773250820668,7.38266785,87.32,87.256,3.90605299]
[1773250820669,7.38266785,87.32,87.27,7.38266785]
[1773250820873,7.38266785,87.32,87.259,11.46013591]
[1773250820874,2.52056751,87.319,87.29,7.38266785]
[1773250821073,3.58,87.328,87.29,7.38266785]
[1773250821272,2.52056751,87.336,87.3,7.38266785]
[1773250821451,2.52056751,87.336,87.291,2.62322358]
[1773250821652,7.38266785,87.33,87.291,2.62322358]
[1773250821871,2.52056751,87.336,87.291,2.62322358]
[1773250822071,7.38266785,87.33,87.291,2.62322358]
[1773250822275,40.07832449,87.329,87.291,2.62322358]
[1773250822454,7.38266785,87.32,87.291,2.62322358]
[1773250822658,40.07832449,87.329,87.291,2.62322358]
[1773250823175,42.598892,87.329,87.291,2.62322358]
[1773250823357,11.45094985,87.329,87.293,2.62322358]
[1773250823563,2.52056751,87.358,87.31,10.00589143]
[1773250823766,2.52056751,87.358,87.32,7.38266785]
[1773250824072,7.38266785,87.37,87.33,7.38266785]
[1773250824250,40.05997549,87.369,87.33,7.38266785]
[1773250824452,7.38266785,87.36,87.321,2.62322358]
[1773250824660,2.52056751,87.359,87.321,2.62322358]
[1773250824853,40.05997549,87.369,87.33,7.38266785]
[1773250825463,11.44570728,87.369,87.34,7.38266785]
[1773250825754,7.38266785,87.36,87.32,10.00589143]
[1773250825969,7.38266785,87.36,87.32,21.45797219]
[1773250826165,7.38266785,87.35,87.321,2.62322358]
[1773250826480,40.06914789,87.349,87.306,2.62322358]
[1773250826650,7.38266785,87.34,87.306,2.62322358]
[1773250826987,40.06914789,87.349,87.311,2.62322358]
[1773250827170,7.38266785,87.34,87.311,2.62322358]
[1773250827579,7.38266785,87.34,87.3,7.38266785]
[1773250827876,7.38266785,87.33,87.29,7.38266785]
[1773250828079,2.52056751,87.331,87.29,7.38266785]
[1773250828572,2.52056751,87.331,87.3,7.38266785]
[1773250828880,45.77806904,87.379,87.291,11.45593474]
[1773250828881,11.4485901,87.347,87.31,7.38266785]
[1773250829085,11.4485901,87.347,87.32,7.38266785]
[1773250829458,11.4485901,87.347,87.31,7.38266785]
[1773250829866,11.4485901,87.347,87.311,2.62322358]
[1773250830271,11.4485901,87.347,87.32,7.38266785]
[1773250830476,40.07006536,87.347,87.311,2.62322358]
[1773250830676,11.4485901,87.347,87.311,2.62322358]
[1773250831155,9.90323536,87.33,87.29,7.38266785]
[1773250831356,2.52056751,87.342,87.31,7.38266785]
[1773250831957,11.4485901,87.347,87.311,2.62322358]
[1773250832154,7.38266785,87.34,87.311,2.62322358]
[1773250832378,2.52056751,87.339,87.3,7.38266785]
[1773250832577,11.4485901,87.347,87.311,2.62322358]
[1773250832875,11.4485901,87.347,87.312,2.62322358]
[1773250833267,11.4485901,87.347,87.312,14.07640298]
[1773250833465,11.4485901,87.347,87.32,10.00589143]
[1773250833655,11.4485901,87.347,87.32,2.62322358]
[1773250833857,11.4485901,87.347,87.32,10.00589143]
[1773250834058,11.4485901,87.347,87.32,2.62322358]
[1773250835076,11.4485901,87.347,87.3,28.63664659]
[1773250835077,2.52056751,87.339,87.288,1.14563284]
[1773250835260,2.52056751,87.339,87.29,7.38266785]
[1773250835261,7.38266785,87.33,87.29,7.38266785]
[1773250835463,2.52056751,87.339,87.3,7.38266785]
[1773250835766,7.38266785,87.33,87.29,7.38266785]
[1773250835969,2.52056751,87.339,87.3,7.38266785]
[1773250836784,7.38266785,87.33,87.29,7.38266785]
[1773250837284,7.38266785,87.31,87.278,11.45758339]
[1773250837480,7.38266785,87.3,87.259,2.62322358]
[1773250837782,2.52056751,87.309,87.27,7.38266785]
[1773250837968,2.52056751,87.309,87.28,7.38266785]
[1773250838169,2.52056751,87.309,87.27,7.38266785]
[1773250838678,2.52056751,87.309,87.269,2.62322358]
[1773250838877,2.52056751,87.309,87.27,7.38266785]
[1773250839185,7.38266785,87.32,87.28,7.38266785]
[1773250839482,2.52056751,87.326,87.29,7.38266785]
[1773250839968,2.52056751,87.326,87.283,1.14569847]
[1773250839969,2.52056751,87.341,87.31,7.38266785]
[1773250840169,45.76681428,87.4,87.318,2.62322358]
[1773250840170,2.52056751,87.356,87.318,2.62322358]
[1773250840373,2.52056751,87.356,87.32,7.38266785]
[1773250840573,7.38266785,87.34,87.3,7.38266785]
[1773250840768,2.51192055,87.349,87.31,7.38266785]
[1773250841088,11.45094985,87.329,87.291,40.0957716]
[1773250841384,11.45094985,87.329,87.292,1.14558035]
[1773250841568,11.45094985,87.329,87.291,11.45593474]
[1773250841984,40.07832449,87.329,87.29,7.38266785]
[1773250842284,2.51192055,87.331,87.3,7.38266785]
[1773250842488,2.51192055,87.349,87.31,7.38266785]
[1773250843083,2.51192055,87.349,87.32,7.38266785]
[1773250843084,13.96027312,87.349,87.32,7.38266785]
[1773250843284,11.44835257,87.349,87.32,7.38266785]
[1773250843585,11.44701747,87.359,87.32,7.38266785]
[1773250843778,11.44701747,87.359,87.33,7.38266785]
[1773250844292,2.51192055,87.358,87.32,7.38266785]
[1773250845081,11.44727955,87.357,87.33,7.38266785]
[1773250845286,2.51192055,87.372,87.35,7.38266785]
[1773250845494,7.48266785,87.39,87.351,2.58478041]
[1773250845670,11.4430878,87.389,87.351,2.58478041]
[1773250846766,7.38266785,87.38,87.351,2.58478041]
[1773250846970,7.38266785,87.38,87.34,7.38266785]
[1773250846971,7.38266785,87.38,87.342,2.58478041]
[1773250847587,40.0508073,87.389,87.35,7.38266785]
[1773250847790,7.38266785,87.38,87.342,2.58478041]
[1773250848091,2.51192055,87.388,87.342,2.58478041]
[1773250848275,2.51192055,87.388,87.35,7.38266785]
[1773250848465,2.51192055,87.388,87.36,7.38266785]
[1773250848670,7.38266785,87.38,87.343,11.44911441]
[1773250848886,2.51192055,87.386,87.343,11.44911441]
[1773250849091,11.44334969,87.387,87.343,11.44911441]
[1773250849092,7.38266785,87.38,87.343,11.44911441]
[1773250849294,2.51192055,87.381,87.343,11.44911441]
[1773250849492,2.51192055,87.359,87.32,7.38266785]
[1773250849691,2.51192055,87.359,87.321,11.45199894]
[1773250850272,2.51192055,87.359,87.322,2.69207325]
[1773250850574,7.38266785,87.34,87.3,7.38266785]
[1773250850776,14.18518644,87.339,87.302,11.4544913]
[1773250850970,2.73554768,87.338,87.302,11.4544913]
[1773250851168,7.38266785,87.33,87.292,11.45580351]
[1773250851373,2.73554768,87.338,87.3,7.38266785]
[1773250851591,7.38266785,87.32,87.283,2.69207325]
[1773250851793,7.38266785,87.32,87.284,11.45673345]
[1773250852173,7.38266785,87.33,87.291,2.69207325]
[1773250852383,2.73554768,87.338,87.301,2.69207325]
[1773250852780,2.73554768,87.338,87.31,7.38266785]
[1773250853088,40.06960662,87.348,87.31,7.38266785]
[1773250853291,7.38266785,87.34,87.303,2.69207325]
[1773250853482,11.44845903,87.348,87.31,7.38266785]
[1773250853790,11.44845903,87.348,87.311,2.69207325]
[1773250854173,2.73554768,87.367,87.321,2.69207325]
[1773250854371,7.38266785,87.35,87.321,2.69207325]
[1773250854578,2.73554768,87.359,87.321,2.69207325]
[1773250854784,2.73554768,87.339,87.302,11.4544913]
[1773250854990,10.11821553,87.35,87.311,2.69207325]
[1773250855171,11.44846007,87.348,87.311,2.69207325]
[1773250855592,45.7649276,87.404,87.33,7.38266785]
[1773250855593,2.73554768,87.362,87.33,7.38266785]
[1773250855800,7.38266785,87.36,87.321,2.69207325]
[1773250856386,7.38266785,87.36,87.32,7.38266785]
[1773250856387,40.05997549,87.369,87.331,2.69207325]
[1773250856591,7.38266785,87.36,87.331,2.69207325]
[1773250856784,7.38266785,87.36,87.32,7.38266785]
[1773250856986,2.73554768,87.349,87.311,11.45331057]
[1773250857700,11.44701747,87.359,87.321,2.69207325]
[1773250858085,11.44583829,87.368,87.331,2.69207325]
[1773250859098,40.06043402,87.368,87.331,2.69207325]
[1773250859304,2.73554768,87.359,87.32,7.38266785]
[1773250859804,11.44583829,87.368,87.331,2.69207325]
[1773250860306,2.73554768,87.383,87.35,10.0747411]
[1773250860603,7.38266785,87.38,87.34,7.38266785]
[1773250860786,7.38266785,87.38,87.332,1.14505564]
[1773250860787,0.1,87.43,87.381,4.82477569]
[1773250860987,11.43785242,87.429,87.4,7.38266785]
[1773250861180,0.1,87.43,87.402,2.69207325]
[1773250862082,0.1,87.43,87.33,45.8029281]
[1773250862083,7.38266785,87.42,87.381,2.69207325]
[1773250862705,7.48266785,87.43,87.39,7.38266785]
[1773250862996,0.1,87.43,87.4,7.38266785]
[1773250863201,7.38266785,87.44,87.391,2.69207325]
[1773250863202,11.43392904,87.459,87.421,2.69207325]
[1773250863402,2.73554768,87.458,87.421,2.69207325]
[1773250863599,7.3275632,87.44,87.407,2.69207325]
[1773250863983,7.3275632,87.43,87.391,2.69207325]
[1773250864184,2.73554768,87.43,87.391,2.69207325]
[1773250864483,10.06311088,87.43,87.391,2.69207325]
[1773250864793,2.73554768,87.419,87.371,2.69207325]
[1773250864992,3.54,87.452,87.371,2.69207325]
[1773250864993,7.3275632,87.4,87.371,2.69207325]
[1773250865193,7.3275632,87.39,87.357,2.69207325]
[1773250865396,2.73554768,87.398,87.357,14.1392931]
[1773250865781,7.3275632,87.38,87.357,2.69207325]
[1773250865998,7.3275632,87.38,87.342,14.14120261]
[1773250866301,7.3275632,87.38,87.343,1.14491144]
[1773250866706,7.3275632,87.38,87.342,15.28612715]
[1773250867302,7.3275632,87.37,87.342,2.69207325]
[1773250867502,7.3275632,87.36,87.321,2.69207325]
[1773250867689,2.73554768,87.349,87.312,11.4531794]
[1773250868689,7.3275632,87.34,87.31,2.69207325]
[1773250868892,7.3275632,87.34,87.311,11.45331057]
[1773250869115,2.73554768,87.349,87.311,11.45331057]
[1773250869302,7.3275632,87.34,87.31,2.69207325]
[1773250869505,7.3275632,87.33,87.291,2.69207325]
[1773250869720,7.3275632,87.33,87.291,3.83766672]
[1773250870012,2.73554768,87.338,87.3,2.69207325]
[1773250870185,2.73554768,87.338,87.301,2.69207325]
[1773250871020,18.77579476,87.35,87.311,2.69207325]
[1773250871209,7.3275632,87.38,87.341,2.69207325]
[1773250871513,11.44439739,87.379,87.351,11.44806584]
[1773250871693,11.44439739,87.379,87.341,2.69207325]
[1773250871694,11.44439739,87.379,87.342,11.44924549]
[1773250871900,7.3275632,87.37,87.327,2.69207325]
[1773250872206,7.3275632,87.35,87.315,2.69207325]
[1773250872507,7.3275632,87.36,87.321,2.69207325]
[1773250872893,7.3275632,87.35,87.315,11.45273939]
[1773250873090,7.3275632,87.35,87.316,2.69207325]
[1773250873607,18.77578337,87.35,87.317,14.14459681]
[1773250873806,7.3275632,87.33,87.29,7.3275632]
[1773250874010,2.73554768,87.329,87.29,7.3275632]
[1773250874311,2.73554768,87.329,87.291,1.14559347]
[1773250874894,7.3275632,87.34,87.3,7.3275632]
[1773250875098,2.73554768,87.348,87.31,7.3275632]
[1773250875297,2.73554768,87.348,87.301,1.14546225]
[1773250875298,7.3275632,87.34,87.301,1.14546225]
[1773250875703,18.77709405,87.34,87.31,7.3275632]
[1773250875900,7.3275632,87.35,87.311,1.14533105]
[1773250876091,10.06311088,87.35,87.312,1.14531794]
[1773250877115,2.73554768,87.349,87.31,11.16498062]
[1773250877315,40.06777177,87.352,87.297,4.82477569]
[1773250877316,7.3275632,87.33,87.297,2.69207325]
[1773250877617,40.06777177,87.352,87.274,2.69207325]
[1773250877618,2.73554768,87.309,87.274,2.69207325]
[1773250877916,7.3275632,87.3,87.272,11.45830417]
[1773250878116,2.73554768,87.307,87.27,7.3275632]
[1773250878517,11.45370412,87.308,87.26,7.5275632]
[1773250878518,2.73554768,87.299,87.26,7.5275632]
[1773250878826,2.73554768,87.299,87.26,18.98752047]
[1773250879411,2.73554768,87.299,87.26,11.65995727]
[1773250879721,7.3275632,87.3,87.261,11.45987325]
[1773250879901,7.3275632,87.3,87.262,3.84233061]
[1773250880101,7.3275632,87.3,87.262,2.69635642]
[1773250880398,28.62921802,87.324,87.27,7.3275632]
[1773250880717,7.3275632,87.31,87.271,2.69635642]
[1773250881020,2.49054758,87.319,87.28,7.3275632]
[1773250881515,2.49054758,87.319,87.274,1.14581662]
[1773250881516,2.49054758,87.319,87.29,7.3275632]
[1773250881722,7.3275632,87.33,87.29,7.3275632]
[1773250881723,11.45094985,87.329,87.291,11.45593474]
[1773250882027,2.49054758,87.331,87.3,7.3275632]
[1773250882230,3.54,87.333,87.31,7.3275632]
[1773250882515,7.3275632,87.35,87.32,7.3275632]
[1773250882720,7.3275632,87.35,87.311,2.69635642]
[1773250883100,9.81811078,87.35,87.311,2.69635642]
[1773250883305,2.49054758,87.329,87.291,11.45593474]
[1773250883719,11.45040731,87.334,87.3,7.3275632]
[1773250883904,11.45040731,87.334,87.301,2.69635642]
[1773250884107,2.49054758,87.329,87.294,11.45554104]
[1773250884703,2.49054758,87.329,87.294,40.09439365]
[1773250885203,2.49054758,87.319,87.289,11.45618136]
[1773250885404,7.3275632,87.33,87.29,7.3275632]
[1773250885822,7.3275632,87.32,87.281,2.69635642]
[1773250886136,2.49054758,87.319,87.281,2.69635642]
[1773250886503,2.49054758,87.319,87.282,1.1457116]
[1773250887303,2.49054758,87.331,87.3,7.3275632]
[1773250887510,11.45081873,87.33,87.3,7.3275632]
[1773250887708,2.49054758,87.347,87.311,11.45331057]
[1773250887923,11.44872117,87.346,87.311,11.45331057]
[1773250888103,7.3275632,87.34,87.311,11.45331057]